{"text_format":"1","workbook":"xlsx","n_sheets":3,"sheets":["OSHA Form 300","OSHA Form 300A","OSHA Form 301"],"not_rendered":{"charts":0,"images":3,"macros":0,"external_links":0,"defined_names":2,"comments":0,"pivot_tables":0},"unopened":[],"bounds":{"document_bytes":16777216,"sheet_cells":100000,"rows_first":2000,"rows_last":500,"rows_between":2000,"halvings":0,"cell_chars":16384,"cell_head_chars":4096},"cells_cut":0,"cells_raw":0,"read":"whole","date_system":"1900"}

{"sheet":"OSHA Form 300","index":0,"n_rows":46,"n_cols":18,"rows_kept":46,"cut":false,"hidden":false,"merged":[[0,0,1,5],[8,0,11,6],[2,0,2,5],[39,13,44,13],[39,5,39,11],[40,5,46,8],[40,9,44,11],[41,0,46,4],[3,0,4,5],[0,11,1,12],[0,10,4,10],[0,13,1,15],[0,6,4,9],[3,11,3,17],[4,11,4,17],[2,13,2,14],[12,8,12,16],[8,7,12,7],[6,0,6,17],[12,0,12,6],[9,8,9,16],[8,8,8,11],[16,1,23,1],[16,2,23,2],[16,4,23,4],[39,14,44,14],[39,15,44,15],[18,14,22,14],[19,11,22,11],[18,15,22,15],[37,0,37,4],[21,8,22,8],[21,7,22,7],[16,5,23,5],[20,3,23,3],[21,6,22,6],[17,12,17,17],[46,9,46,16],[38,0,38,16],[39,0,40,4],[39,16,44,16],[39,12,44,12],[10,10,10,17],[11,13,11,17],[13,0,13,1],[13,2,13,5],[14,0,14,5],[16,3,19,3],[19,12,22,12],[19,6,20,6],[16,0,23,0],[19,7,20,7],[13,6,13,17],[14,12,16,17],[7,16,7,17],[8,12,8,17],[18,13,22,13],[11,9,11,11],[10,8,10,9],[14,6,16,9],[14,10,16,11],[18,6,18,9],[17,10,17,11],[21,9,22,9],[18,16,22,16],[47,0,47,17],[39,17,44,17],[19,10,22,10],[18,17,22,17],[17,6,17,9],[18,10,18,11],[19,8,20,9]]}
[null,null,null,null,null,null,"Attention:  This form contains information relating to employee health and must be used in a manner that protects the confidentiality of employees to the extent possible while the information is being used for occupational safety and health purposes."]
[]
["OSHA's Form 300 (Rev. 01/2004)",null,null,null,null,null,null,null,null,null,null,null,"Year"]
["Log of Work-Related Injuries and Illnesses",null,null,null,null,null,null,null,null,null,null,"U.S. Department of Labor"]
[null,null,null,null,null,null,null,null,null,null,null,"Occupational Safety and Health Administration"]
[]
[]
[]
["You must record information about every work-related injury or illness that involves loss of consciousness, restricted work activity or job transfer, days away from work, or medical treatment beyond first aid.  You must also record significant work-related injuries and illnesses that are diagnosed by a physician or licensed health care professional.  You must also record work-related injuries and illnesses that meet any of the specific recording criteria listed in 29 CFR 1904.8 through 1904.12.  Feel free to use two lines for a single case if you need to.  You must complete an injury and illness incident report (OSHA Form 301) or equivalent form for each injury or illness recorded on this form.  If you're not sure whether a case is recordable, call your local OSHA office for help.",null,null,null,null,null,null,null,null,null,null,null,"Form approved OMB no. 1218-0176"]
[]
[null,null,null,null,null,null,null,null,"Establishment name"]
[null,null,null,null,null,null,null,null,"City",null,null,null,"State"]
[]
["Identify the person",null,"Describe the case",null,null,null,"Classify the case"]
[null,null,null,null,null,null,"CHECK ONLY ONE box for each case based on the most serious outcome for that case:",null,null,null,"Enter the number of days the injured or ill worker was:",null,"Check the \"injury\" column or choose one type of illness:"]
["(A)","(B)","(C)","(D)","(E)","(F)"]
["Case No.","Employee's Name","Job Title  (e.g., Welder)","Date of injury or onset of illness","Where the event occurred (e.g. Loading dock north end)","Describe injury or illness, parts of body affected, and object/substance that directly injured or made person ill (e.g. Second degree burns on right forearm from acetylene torch)"]
[]
[null,null,null,null,null,null,null,null,null,null,null,null,"(M)","Skin Disorder","Respiratory Condition","Poisoning","Hearing Loss","All other illnesses"]
[null,null,null,null,null,null,"Death","Days away from work","Remained at work",null,"Away From Work (days)","On job transfer or restriction (days)","Injury"]
[null,null,null,"(mo./day)"]
[null,null,null,null,null,null,null,null,"Job transfer or restriction","Other record- able cases"]
[]
[null,null,null,null,null,null,"(G)","(H)","(I)","(J)","(K)","(L)","(1)","(2)","(3)","(4)","(5)","(6)"]
[]
[]
[]
[]
[]
[]
[]
[]
[]
[]
[]
[]
[]
[null,null,null,null,null,"Page totals    ",{"$f":"COUNTIF(G25:G37,\"=x\")","v":0},{"$f":"COUNTIF(H25:H37,\"=x\")","v":0},{"$f":"COUNTIF(I25:I37,\"=x\")","v":0},0,{"$f":"SUM(K25:K37)","v":0},{"$f":"SUM(L25:L37)","v":0},0,0,0,0,{"$f":"COUNTIF(Q25:Q37,\"=x\")","v":0},{"$f":"COUNTIF(R25:R37,\"=x\")","v":0}]
[]
[null,null,null,null,null,"Be sure to transfer these totals to the Summary page (Form 300A) before you post it.",null,null,null,null,null,null,"Injury","Skin Disorder","Respiratory Condition","Poisoning","Hearing Loss","All other illnesses"]
[]
["Public reporting burden for this collection of information is estimated to average 14 minutes per response, including time to review the instruction, search and gather the data needed, and complete and review the collection of information.  Persons are not required to respond to the collection of information unless it displays a currently valid OMB control number.  If you have any comments about these estimates or any aspects of this data collection, contact:  US Department of Labor, OSHA Office of Statistics, Room N-3644, 200 Constitution Ave, NW, Washington, DC 20210.  Do not send the completed forms to this office."]
[]
[]
[]
[null,null,null,null,null,null,null,null,null,"Page","1 of 1",null,"(1)","(2)","(3)","(4)","(5)","(6)"]

{"sheet":"OSHA Form 300A","index":1,"n_rows":53,"n_cols":35,"rows_kept":53,"cut":false,"hidden":false,"merged":[[27,15,27,23],[33,32,33,35],[7,0,7,6],[8,15,9,36],[10,15,10,35],[12,15,13,35],[18,17,18,25],[14,16,14,21],[16,17,16,34],[18,29,18,32],[40,15,41,35],[37,19,37,35],[14,22,14,34],[23,33,23,35],[27,24,27,35],[37,15,37,18],[18,27,18,28],[15,15,15,35],[17,15,17,35],[19,15,19,35],[45,35,46,35],[49,35,50,35],[32,16,32,35],[46,16,46,27],[44,15,44,35],[42,15,43,15],[42,16,43,34],[49,15,50,15],[38,15,38,35],[33,27,33,29],[21,3,25,3],[51,15,51,35],[45,15,46,15],[49,16,49,27],[45,16,45,27],[49,32,50,32],[50,16,50,27],[47,15,48,35],[45,32,46,32],[42,35,43,35],[22,15,22,35],[31,15,33,15],[33,16,33,25],[24,24,24,35],[24,15,24,16],[23,16,23,32],[28,15,30,35],[31,16,31,25],[25,16,25,32],[31,27,31,29],[5,0,5,36],[11,24,11,35],[7,15,7,33],[31,32,31,35],[20,0,20,6],[21,6,23,6],[10,0,10,6],[21,1,25,1],[27,0,28,6],[29,0,29,6],[41,3,43,3],[41,5,42,5],[11,15,11,23],[17,0,17,6],[13,0,13,6],[21,0,23,0],[18,0,19,6],[38,0,38,6],[26,0,26,5],[39,2,40,6],[57,0,57,36],[6,19,6,36],[7,34,7,36],[46,33,46,34],[50,33,50,34],[45,33,45,34],[49,33,49,34],[44,0,49,6],[21,17,21,34],[21,5,25,5],[0,36,1,36],[2,16,2,33],[1,5,1,33],[2,34,2,36],[0,0,0,35],[1,0,1,4],[2,0,3,15],[3,33,3,36],[3,16,3,32],[56,0,56,36],[30,1,34,3],[30,0,32,0],[30,4,32,4],[30,5,34,6],[52,0,55,11],[51,0,51,14],[52,12,55,36],[35,0,35,6],[36,0,37,6],[34,15,36,35],[7,7,49,14],[20,16,20,35],[50,0,50,14],[8,0,9,6],[11,0,12,6],[14,0,16,6],[21,2,23,2],[21,4,23,4],[39,1,43,1]]}
[]
["OSHA's Form 300A (Rev. 01/2004)",null,null,null,null,null,null,null,null,null,null,null,null,null,null,null,null,null,null,null,null,null,null,null,null,null,null,null,null,null,null,null,null,null,"Year"]
["Summary of Work-Related Injuries and Illnesses",null,null,null,null,null,null,null,null,null,null,null,null,null,null,null,null,null,null,null,null,null,null,null,null,null,null,null,null,null,null,null,null,null,"U.S. Department of Labor"]
[null,null,null,null,null,null,null,null,null,null,null,null,null,null,null,null,null,null,null,null,null,null,null,null,null,null,null,null,null,null,null,null,null,"Occupational Safety and Health Administration"]
[]
[]
[]
[null,null,null,null,null,null,null,null,null,null,null,null,null,null,null,null,null,null,null,null,null,null,null,null,null,null,null,null,null,null,null,null,null,null,"Form approved OMB no. 1218-0176"]
["All establishments covered by Part 1904 must complete this Summary page, even if no injuries or illnesses occurred during the year.  Remember to review the Log to verify that the entries are complete and accurate before completing this summary."]
[]
[]
["Using the Log, count the individual entries you made for each category.  Then write the totals below, making sure you've added the entries from every page of the log.  If you had no cases write \"0.\"",null,null,null,null,null,null,null,null,null,null,null,null,null,null,"Establishment information"]
[]
[]
["Employees former employees, and their representatives have the right to review the OSHA Form 300 in its entirety.  They also have limited access to the OSHA Form 301 or its equivalent.  See 29 CFR 1904.35, in OSHA's Recordkeeping rule, for further details on the access provisions for these forms.",null,null,null,null,null,null,null,null,null,null,null,null,null,null,null,"Your establishment name"]
[]
[null,null,null,null,null,null,null,null,null,null,null,null,null,null,null,null,"Street"]
[]
["Number of Cases",null,null,null,null,null,null,null,null,null,null,null,null,null,null,null,"City",null,null,null,null,null,null,null,null,null,null,"State",null,null,null,null,null,"Zip"]
[]
[null,null,null,null,null,null,null,null,null,null,null,null,null,null,null,null,"Industry description (e.g., Manufacture of motor truck trailers)"]
["Total number of deaths",null,"Total number of cases with days away from work",null,"Total number of cases with job transfer or restriction",null,"Total number of other recordable cases"]
[]
[null,null,null,null,null,null,null,null,null,null,null,null,null,null,null,null,"Standard Industrial Classification (SIC), if known (e.g., SIC 3715)"]
[{"$f":"'OSHA Form 300'!G38","v":0},null,{"$f":"'OSHA Form 300'!H38","v":0},null,{"$f":"'OSHA Form 300'!I38","v":0},null,{"$f":"'OSHA Form 300'!J38","v":0}]
["(G)",null,"(H)",null,"(I)",null,"(J)",null,null,null,null,null,null,null,null,"OR","North American Industrial Classification (NAICS), if known (e.g., 336212)"]
[]
["Number of Days",null,null,null,null,null,null,null,null,null,null,null,null,null,null,"Employment information"]
[]
[]
["Total number of days away from work",null,null,null,"Total number of days of job transfer or restriction"]
[null,null,null,null,null,null,null,null,null,null,null,null,null,null,null,null,"Annual average number of employees"]
[]
[{"$f":"'OSHA Form 300'!K38","v":0},null,null,null,{"$f":"'OSHA Form 300'!L38","v":0},null,null,null,null,null,null,null,null,null,null,null,"Total hours worked by all employees last year"]
["(K)",null,null,null,"(L)"]
[]
["Injury and Illness Types"]
[null,null,null,null,null,null,null,null,null,null,null,null,null,null,null,"Sign here"]
[]
["Total number of…",null,null,null,null,null,null,null,null,null,null,null,null,null,null,null,"Knowingly falsifying this document may result in a fine."]
["(M)"]
["(1)  Injury",null,{"$f":"'OSHA Form 300'!M38","v":0},null,"(4)  Poisoning",null,{"$f":"'OSHA Form 300'!P38","v":0}]
["(2)  Skin Disorder",null,{"$f":"'OSHA Form 300'!N38","v":0},null,"(5)  Hearing Loss",null,{"$f":"'OSHA Form 300'!Q38","v":0},null,null,null,null,null,null,null,null,null,"I certify that I have examined this document and that to the best of my knowledge the entries are true, accurate, and complete."]
["(3)  Respiratory Condition",null,{"$f":"'OSHA Form 300'!O38","v":0},null,"(6) All Other Illnesses",null,{"$f":"'OSHA Form 300'!R38","v":0}]
["  "]
[]
[null,null,null,null,null,null,null,null,null,null,null,null,null,null,null,null,"Company executive",null,null,null,null,null,null,null,null,null,null,null,null,null,null,null,null,"Title"]
[]
[]
[]
["Post this Summary page from February 1 to April 30 of the year following the year covered by the form",null,null,null,null,null,null,null,null,null,null,null,null,null,null,null,"Phone",null,null,null,null,null,null,null,null,null,null,null,null,null,null,null,null,"Date"]
[]
["Public reporting burden for this collection of information is estimated to average 50 minutes per response, including time to review the instruction, search and gather the data needed, and complete and review the collection of information.  Persons are not required to respond to the collection of information unless it displays a currently valid OMB control number.  If you have any comments about these estimates or any aspects of this data collection, contact:  US Department of Labor, OSHA Office of Statistics, Room N-3644, 200 Constitution Ave, NW, Washington, DC 20210.  Do not send the completed forms to this office."]

{"sheet":"OSHA Form 301","index":2,"n_rows":53,"n_cols":26,"rows_kept":53,"cut":false,"hidden":false,"merged":[[12,11,12,15],[9,0,9,27],[49,18,49,24],[0,0,1,5],[40,8,40,15],[38,8,38,15],[36,8,36,15],[34,8,34,15],[20,11,20,15],[18,11,18,15],[14,10,14,15],[11,18,11,27],[2,0,3,5],[35,18,37,27],[6,0,6,27],[21,7,21,15],[19,7,19,15],[17,7,17,15],[15,7,15,15],[13,7,13,15],[23,7,28,7],[8,0,8,24],[7,0,7,27],[10,16,49,16],[10,6,49,6],[25,8,25,15],[28,8,28,15],[32,8,32,15],[30,7,32,7],[34,7,40,7],[42,7,45,7],[20,8,20,10],[14,18,14,20],[20,18,24,27],[1,27,3,27],[42,0,42,2],[47,0,47,1],[41,0,41,5],[47,10,49,15],[42,10,44,15],[35,10,35,15],[31,18,34,27],[45,18,48,27],[18,18,18,20],[18,24,18,27],[25,18,27,27],[14,22,14,27],[16,23,16,27],[28,18,30,27],[52,0,52,27],[42,18,44,27],[51,0,51,27],[38,18,41,27],[43,0,44,5],[46,0,46,5],[48,0,49,5],[45,0,45,1],[42,3,42,5],[45,2,45,5],[33,8,33,15],[35,8,35,9],[37,8,37,9],[22,11,24,15],[23,8,23,10],[22,9,22,10],[29,8,29,15],[24,9,24,10],[26,8,27,15],[37,10,37,15],[50,0,50,27],[10,0,10,5],[11,0,19,5],[1,16,5,21],[4,0,5,14],[1,15,5,15],[1,6,3,14],[29,17,34,17],[36,17,41,17],[43,17,48,17],[29,0,32,5],[0,6,0,27],[1,22,3,26],[4,22,4,24],[15,17,15,27],[17,17,17,27],[19,17,19,27],[21,17,27,17],[16,18,16,20],[11,7,11,15],[33,0,34,5],[35,0,40,5],[12,22,12,27],[30,8,30,15],[31,8,31,15],[12,8,12,10],[14,8,14,9],[16,8,16,9],[18,8,18,10],[20,0,28,5],[47,2,47,3],[39,10,39,11],[46,8,46,15],[41,8,41,15],[39,8,39,9],[47,7,49,7],[48,8,48,9],[43,8,43,9],[45,8,45,15],[49,25,49,27],[16,10,16,11],[4,25,4,27],[5,22,5,27],[8,25,8,27],[10,8,10,15],[10,17,11,17],[13,17,13,27],[10,18,10,27],[12,18,12,20]]}
[]
[null,null,null,null,null,null,null,null,null,null,null,null,null,null,null,null,"Attention:  This form contains information relating to employee health and must be used in a manner that protects the confidentiality of employees to the extent possible while the information is being used for occupational safety and health purposes."]
["OSHA's Form 301"]
[]
["Injuries and Illnesses Incident Report",null,null,null,null,null,null,null,null,null,null,null,null,null,null,null,null,null,null,null,null,null,null,null,null,"U.S. Department of Labor"]
[null,null,null,null,null,null,null,null,null,null,null,null,null,null,null,null,null,null,null,null,null,null,"Occupational Safety and Health Administration"]
[]
[]
[null,null,null,null,null,null,null,null,null,null,null,null,null,null,null,null,null,null,null,null,null,null,null,null,null,"Form approved OMB no. 1218-0176"]
[]
[null,null,null,null,null,null,null,null,"Information about the employee",null,null,null,null,null,null,null,null,null,"Information about the case"]
["This Injury and Illness Incident Report is one of the first forms you must fill out when a recordable work-related injury or illness has occurred.  Together with the Log of Work-Related injuries and Illnesses and the accompanying Summary, these forms help the employer and OSHA develop a picture of the extent and severity of work-related incidents.                                            "]
[null,null,null,null,null,null,null,"1)","Full Name",null,null,null,null,null,null,null,null,"10)","Case number from the Log",null,null,null,"(Transfer the case number from the Log after you record the case.)"]
[]
[null,null,null,null,null,null,null,"2)","Street",null,null,null,null,null,null,null,null,"11)","Date of injury or illness"]
[]
[null,null,null,null,null,null,null,null,"City",null,null,null,"State",null,"Zip",null,null,"12)","Time employee began work",null,null,null,"AM/PM"]
[]
[null,null,null,null,null,null,null,"3)","Date of birth",null,null,null,null,null,null,null,null,"13)","Time of event",null,null," ","AM/PM",null,"Check if time cannot be determined"]
[]
["       Within 7 calendar days after you receive information that a recordable work-related injury or illness has occurred, you must fill out this form or an equivalent.  Some state workers' compensation, insurance, or other reports may be acceptable substitutes.  To be considered an equivalent form, any substitute must contain all the information asked for on this form.",null,null,null,null,null,null,"4)","Date hired",null,null,null,null,null,null,null,null,"14)","What was the employee doing just before the incident occurred?  Describe the activity, as well as the tools, equipment or material the employee was using.  Be specific.  Examples:  \"climbing a ladder while carrying roofing materials\"; \"spraying chlorine from hand sprayer\"; \"daily computer key-entry.\""]
[]
[null,null,null,null,null,null,null,"5)",null,"Male"]
[]
[null,null,null,null,null,null,null,null,null,"Female"]
[]
[null,null,null,null,null,null,null,null,"Information about the physician or other health care professional"]
[]
[null,null,null,null,null,null,null,null,null,null,null,null,null,null,null,null,null,"15)","What happened? Tell us how the injury occurred. Examples: \"When ladder slipped on wet floor, worker fell 20 feet\"; \"Worker was spayed with chlorine when gasket broke during replacement\"; \"Worker developed soreness in wrist over time.\""]
["       According to Public Law 91-596 and 29 CFR 1904, OSHA's recordkeeping rule, you must keep this form on file for 5 years following the year to which it pertains",null,null,null,null,null,null,"6)","Name of physician or other health care professional"]
[]
[]
[]
["       If you need additional copies of this form, you may photocopy and use as many as you need.",null,null,null,null,null,null,"7)","If treatment was given away from the worksite, where was it given?"]
[]
[null,null,null,null,null,null,null,null,"Facility",null,null,null,null,null,null,null,null,"16)","What was the injury or illness? Tell us the part of the body that was affected and how it was affected; be more specific than \"hurt\", \"pain\", or \"sore.\" Examples: \"strained back\"; \"chemical burn, hand\"; \"carpal tunnel syndrome.\""]
[]
[null,null,null,null,null,null,null,null,"Street"]
[]
[null,null,null,null,null,null,null,null,"City",null,null,null,"State",null,"Zip"]
[]
[null,null,null,null,null,null,null,"8)","Was employee treated in an emergency room?"]
["Completed by",null,null,null,null,null,null,null,null,"Yes",null,null,null,null,null,null,null,"17)","What object or substance directly harmed the employee?  Examples: \"concrete floor\"; \"chlorine\"; \"radial arm saw.\" If this question does not apply to the incident, leave it blank."]
[]
[null,null,null,null,null,null,null,null,null,"No"]
["Title"]
[null,null,null,null,null,null,null,"9)","Was employee hospitalized overnight as an in-patient?"]
["Phone",null,null,null,"Date",null,null,null,null,"Yes"]
[]
[null,null,null,null,null,null,null,null,null,"No",null,null,null,null,null,null,null,"18)","If the employee died, when did death occur?  Date of death"]
[]
[]
["Public reporting burden for this collection of information is estimated to average 22 minutes per response, including time for reviewing instructions, searching existing data sources, gathering and maintaining the data needed, and completing and reviewing the collection of information.  Persons are not required to respond to the collection of information unless it displays a current valid OMB control number.  If you have any comments about this estimate or any other aspects of this data collection, including suggestions for reducing this burden, contact:  US Department of Labor, OSHA Office of Statistics, Room N-3644, 200 Constitution Ave, NW, Washington, DC 20210.  Do not send the completed forms to this office."]